[Event "Early-Titled-Tuesday-Blitz-May-28-2024"]
[Site "Chess.com"]
[Date "2024.05.28"]
[Round "10"]
[White "DishonorOnYourCow"]
[Black "ab-lsv"]
[Result "1-0"]
[WhiteElo "2590"]
[BlackElo "2376"]
[TimeControl "180+1"]
[EndTime "9:58:11 PDT"]
[Termination "DishonorOnYourCow won by checkmate"]

1. d4 {[%clk 0:03:00.9]} 1... d5 {[%clk 0:02:59.7]} 2. c4 {[%clk 0:03:00.4]}
2... c6 {[%clk 0:03:00.2]} 3. Nf3 {[%clk 0:02:57.8]} 3... Nf6 {[%clk 0:03:00.9]}
4. e3 {[%clk 0:02:57.9]} 4... Bf5 {[%clk 0:03:00.4]} 5. Nc3 {[%clk 0:02:57.8]}
5... e6 {[%clk 0:03:00.3]} 6. Nh4 {[%clk 0:02:51.9]} 6... Be4 {[%clk 0:03:00.2]}
7. f3 {[%clk 0:02:51.8]} 7... Bg6 {[%clk 0:03:00.2]} 8. Qb3 {[%clk 0:02:52.4]}
8... Qc7 {[%clk 0:02:59.9]} 9. Bd2 {[%clk 0:02:51.3]} 9... a5 {[%clk 0:02:56]}
10. c5 {[%clk 0:02:45.5]} 10... Nbd7 {[%clk 0:02:54.3]} 11. Nxg6 {[%clk
0:02:43.7]} 11... hxg6 {[%clk 0:02:54.2]} 12. f4 {[%clk 0:02:39.3]} 12... Be7
{[%clk 0:02:38.6]} 13. Be2 {[%clk 0:02:39]} 13... g5 {[%clk 0:02:21.7]} 14.
O-O-O {[%clk 0:02:14.8]} 14... gxf4 {[%clk 0:02:01.7]} 15. exf4 {[%clk
0:02:15.7]} 15... g6 {[%clk 0:01:57.3]} 16. g4 {[%clk 0:02:12.9]} 16... Rh3
{[%clk 0:01:53.3]} 17. Qc2 {[%clk 0:02:04.9]} 17... a4 {[%clk 0:01:41.4]} 18. f5
{[%clk 0:02:04]} 18... gxf5 {[%clk 0:01:38.3]} 19. gxf5 {[%clk 0:02:04.9]} 19...
exf5 {[%clk 0:01:24.1]} 20. Qxf5 {[%clk 0:02:03.8]} 20... a3 {[%clk 0:01:23.5]}
21. Qxh3 {[%clk 0:02:00.5]} 21... axb2+ {[%clk 0:01:23.1]} 22. Kb1 {[%clk
0:02:00]} 22... Qa5 {[%clk 0:01:17.6]} 23. Bg4 {[%clk 0:01:25.1]} 23... Nf8
{[%clk 0:00:50.8]} 24. Rhe1 {[%clk 0:01:19.8]} 24... Ne4 {[%clk 0:00:44.6]} 25.
a4 {[%clk 0:01:05.7]} 25... Nxc3+ {[%clk 0:00:30.9]} 26. Qxc3 {[%clk 0:01:00.5]}
26... Qxa4 {[%clk 0:00:29.4]} 27. Qxb2 {[%clk 0:01:00.5]} 27... Kd8 {[%clk
0:00:26.1]} 28. Rxe7 {[%clk 0:00:56.8]} 28... Kxe7 {[%clk 0:00:25.2]} 29. Re1+
{[%clk 0:00:52.6]} 29... Kf6 {[%clk 0:00:21.8]} 30. Bf4 {[%clk 0:00:46.9]} 30...
Ng6 {[%clk 0:00:19.9]} 31. Be5+ {[%clk 0:00:45]} 31... Nxe5 {[%clk 0:00:18]} 32.
dxe5+ {[%clk 0:00:39.5]} 32... Kg5 {[%clk 0:00:15.5]} 33. Bd1 {[%clk 0:00:37.7]}
33... Qc4 {[%clk 0:00:06.8]} 34. Rg1+ {[%clk 0:00:26.1]} 34... Kf5 {[%clk
0:00:06]} 35. Bg4+ {[%clk 0:00:24.8]} 35... Ke4 {[%clk 0:00:03.8]} 36. Re1+
{[%clk 0:00:14.2]} 36... Kf4 {[%clk 0:00:03.1]} 37. Qf2+ {[%clk 0:00:14.7]}
37... Kxg4 {[%clk 0:00:02.9]} 38. Rg1+ {[%clk 0:00:15.1]} 38... Kh5 {[%clk
0:00:02]} 39. Qf5+ {[%clk 0:00:14.9]} 39... Kh4 {[%clk 0:00:01.6]} 40. Qg5+
{[%clk 0:00:14.7]} 40... Kh3 {[%clk 0:00:01.4]} 41. Qg3# {[%clk 0:00:15.6]} 1-0

[Event "Early-Titled-Tuesday-Blitz-May-28-2024"]
[Site "Chess.com"]
[Date "2024.05.28"]
[Round "10"]
[White "lamomiajunior"]
[Black "Rsnr"]
[Result "1-0"]
[WhiteElo "2742"]
[BlackElo "2881"]
[TimeControl "180+1"]
[EndTime "9:58:12 PDT"]
[Termination "lamomiajunior won by checkmate"]

1. d4 {[%clk 0:03:00.9]} 1... d5 {[%clk 0:02:56.3]} 2. Nc3 {[%clk 0:03:01.3]}
2... Nf6 {[%clk 0:02:54.4]} 3. Bf4 {[%clk 0:03:01.7]} 3... e6 {[%clk 0:02:55]}
4. Nb5 {[%clk 0:03:01.6]} 4... Na6 {[%clk 0:02:55.5]} 5. e3 {[%clk 0:03:01.8]}
5... Be7 {[%clk 0:02:55.7]} 6. Nf3 {[%clk 0:03:01.8]} 6... O-O {[%clk 0:02:56]}
7. h4 {[%clk 0:03:02.4]} 7... c6 {[%clk 0:02:55.2]} 8. Nc3 {[%clk 0:03:03]} 8...
Qb6 {[%clk 0:02:55.7]} 9. a3 {[%clk 0:03:03.1]} 9... c5 {[%clk 0:02:55.8]} 10.
Rb1 {[%clk 0:03:02.6]} 10... Bd7 {[%clk 0:02:55.5]} 11. Bd3 {[%clk 0:03:02]}
11... Rfd8 {[%clk 0:02:50]} 12. h5 {[%clk 0:03:00.4]} 12... Be8 {[%clk
0:02:44.1]} 13. h6 {[%clk 0:02:57.2]} 13... g6 {[%clk 0:02:44.5]} 14. Ne5 {[%clk
0:02:53.3]} 14... cxd4 {[%clk 0:02:41.7]} 15. exd4 {[%clk 0:02:53.7]} 15... Qxd4
{[%clk 0:02:37.9]} 16. Qf3 {[%clk 0:02:53.7]} 16... Nc5 {[%clk 0:02:31.9]} 17.
Rd1 {[%clk 0:02:32.9]} 17... Nxd3+ {[%clk 0:02:29.6]} 18. Rxd3 {[%clk
0:02:33.8]} 18... Qc5 {[%clk 0:02:14.9]} 19. b4 {[%clk 0:02:31.3]} 19... Qd6
{[%clk 0:01:04.3]} 20. Nxg6 {[%clk 0:02:29.5]} 20... hxg6 {[%clk 0:00:52]} 21.
Bxd6 {[%clk 0:02:29.6]} 21... Rxd6 {[%clk 0:00:52.9]} 22. Qg3 {[%clk 0:02:13.5]}
22... Kh7 {[%clk 0:00:50.7]} 23. Rf3 {[%clk 0:02:04]} 23... e5 {[%clk
0:00:33.4]} 24. Kd1 {[%clk 0:01:37.7]} 24... Re6 {[%clk 0:00:33]} 25. Kc1 {[%clk
0:01:23.6]} 25... e4 {[%clk 0:00:29.6]} 26. Rxf6 {[%clk 0:01:03.5]} 26... Bxf6
{[%clk 0:00:30.5]} 27. Nxd5 {[%clk 0:01:03.7]} 27... Be5 {[%clk 0:00:31.2]} 28.
Qe3 {[%clk 0:00:50.1]} 28... Bc6 {[%clk 0:00:18.4]} 29. Nf4 {[%clk 0:00:42.8]}
29... Rd6 {[%clk 0:00:18.4]} 30. Ne2 {[%clk 0:00:42.1]} 30... Rad8 {[%clk
0:00:16.2]} 31. Qc5 {[%clk 0:00:38.2]} 31... Rd5 {[%clk 0:00:13.8]} 32. Qe7
{[%clk 0:00:34.1]} 32... R8d7 {[%clk 0:00:13.6]} 33. Qf8 {[%clk 0:00:18.5]}
33... Rd2 {[%clk 0:00:13.5]} 34. Re1 {[%clk 0:00:17]} 34... Bf6 {[%clk
0:00:07.1]} 35. Ng3 {[%clk 0:00:11.1]} 35... Rxf2 {[%clk 0:00:06.2]} 36. Kb1
{[%clk 0:00:09.1]} 36... Ba4 {[%clk 0:00:05.2]} 37. Rc1 {[%clk 0:00:05.7]} 37...
e3 {[%clk 0:00:03.4]} 38. Ne4 {[%clk 0:00:05.2]} 38... Bd4 {[%clk 0:00:03.2]}
39. Ng5# {[%clk 0:00:04.5]} 1-0

[Event "Early-Titled-Tuesday-Blitz-May-28-2024"]
[Site "Chess.com"]
[Date "2024.05.28"]
[Round "10"]
[White "Connectedcloud"]
[Black "gpsji27"]
[Result "1-0"]
[WhiteElo "2216"]
[BlackElo "2297"]
[TimeControl "180+1"]
[EndTime "9:58:14 PDT"]
[Termination "Connectedcloud won by checkmate"]

1. d4 {[%clk 0:03:00.9]} 1... d5 {[%clk 0:02:58.9]} 2. c4 {[%clk 0:03:00.8]}
2... e6 {[%clk 0:02:58.4]} 3. Nf3 {[%clk 0:03:00.9]} 3... Nf6 {[%clk 0:02:55]}
4. g3 {[%clk 0:02:59.9]} 4... Be7 {[%clk 0:02:52.4]} 5. Bg2 {[%clk 0:02:59.3]}
5... O-O {[%clk 0:02:53]} 6. O-O {[%clk 0:02:59.5]} 6... dxc4 {[%clk 0:02:53.1]}
7. Qc2 {[%clk 0:02:58.3]} 7... a6 {[%clk 0:02:52.6]} 8. a4 {[%clk 0:02:58.6]}
8... Bd7 {[%clk 0:02:52.5]} 9. Qxc4 {[%clk 0:02:59]} 9... Bc6 {[%clk 0:02:52.2]}
10. Bg5 {[%clk 0:02:58.6]} 10... Bd5 {[%clk 0:02:52.2]} 11. Qc2 {[%clk
0:02:57.4]} 11... Be4 {[%clk 0:02:52.8]} 12. Qc1 {[%clk 0:02:58]} 12... Nc6
{[%clk 0:02:53.5]} 13. Nbd2 {[%clk 0:02:35.6]} 13... Bg6 {[%clk 0:02:42.8]} 14.
e3 {[%clk 0:02:33.6]} 14... Nd5 {[%clk 0:02:34.4]} 15. Bxe7 {[%clk 0:02:32.3]}
15... Qxe7 {[%clk 0:02:35.3]} 16. Nc4 {[%clk 0:02:07.1]} 16... Ncb4 {[%clk
0:02:29.9]} 17. Nfe5 {[%clk 0:02:01]} 17... c5 {[%clk 0:02:17.6]} 18. Nxg6
{[%clk 0:01:52.8]} 18... hxg6 {[%clk 0:02:15.6]} 19. e4 {[%clk 0:01:53.2]} 19...
Nd3 {[%clk 0:02:09.4]} 20. Qd2 {[%clk 0:01:50.4]} 20... N5b4 {[%clk 0:02:09.3]}
21. d5 {[%clk 0:01:44.1]} 21... exd5 {[%clk 0:02:06.2]} 22. exd5 {[%clk
0:01:44.2]} 22... Rad8 {[%clk 0:01:58.1]} 23. Ra3 {[%clk 0:01:41.9]} 23... b5
{[%clk 0:01:48.7]} 24. Ne3 {[%clk 0:01:32.5]} 24... c4 {[%clk 0:01:42.9]} 25.
axb5 {[%clk 0:01:32.2]} 25... axb5 {[%clk 0:01:43.8]} 26. h4 {[%clk 0:01:27.8]}
26... Qc5 {[%clk 0:01:37]} 27. Qe2 {[%clk 0:01:20]} 27... Rfe8 {[%clk 0:01:35]}
28. h5 {[%clk 0:01:10.8]} 28... Nxd5 {[%clk 0:01:30.4]} 29. hxg6 {[%clk
0:01:05.4]} 29... fxg6 {[%clk 0:01:18.3]} 30. Bxd5+ {[%clk 0:01:01.6]} 30...
Rxd5 {[%clk 0:01:15.6]} 31. Qg4 {[%clk 0:00:57.7]} 31... Rde5 {[%clk 0:01:13.5]}
32. Qxg6 {[%clk 0:00:52.8]} 32... Rf8 {[%clk 0:00:54.2]} 33. Ng4 {[%clk
0:00:47.9]} 33... Re7 {[%clk 0:00:22.6]} 34. Rxd3 {[%clk 0:00:42.8]} 34... cxd3
{[%clk 0:00:21.3]} 35. Qxd3 {[%clk 0:00:42.6]} 35... Ref7 {[%clk 0:00:20.4]} 36.
Qg6 {[%clk 0:00:39.7]} 36... Rf3 {[%clk 0:00:15.5]} 37. Qe6+ {[%clk 0:00:32.6]}
37... Kh8 {[%clk 0:00:14.7]} 38. Kg2 {[%clk 0:00:27.2]} 38... R3f7 {[%clk
0:00:02.7]} 39. Qg6 {[%clk 0:00:20.7]} 39... Qd5+ {[%clk 0:00:02]} 40. f3 {[%clk
0:00:18.7]} 40... Rxf3 {[%clk 0:00:01.7]} 41. Rh1+ {[%clk 0:00:18]} 41... Kg8
{[%clk 0:00:01]} 42. Nh6+ {[%clk 0:00:18.5]} 42... Kh8 {[%clk 0:00:01.5]} 43.
Nf7+ {[%clk 0:00:18.9]} 43... Kg8 {[%clk 0:00:01.5]} 44. Rh8# {[%clk 0:00:19.5]}
1-0

[Event "Early-Titled-Tuesday-Blitz-May-28-2024"]
[Site "Chess.com"]
[Date "2024.05.28"]
[Round "10"]
[White "GMAneta"]
[Black "ChrisTool2"]
[Result "1/2-1/2"]
[WhiteElo "2506"]
[BlackElo "2375"]
[TimeControl "180+1"]
[EndTime "9:58:15 PDT"]
[Termination "Game drawn by repetition"]

1. e4 {[%clk 0:02:36.1]} 1... c5 {[%clk 0:02:59.1]} 2. d4 {[%clk 0:02:36.4]}
2... cxd4 {[%clk 0:02:59.1]} 3. c3 {[%clk 0:02:37]} 3... Nf6 {[%clk 0:02:59.5]}
4. e5 {[%clk 0:02:35.5]} 4... Nd5 {[%clk 0:03:00.1]} 5. cxd4 {[%clk 0:02:35.8]}
5... e6 {[%clk 0:03:00.7]} 6. Nf3 {[%clk 0:02:33.8]} 6... Nc6 {[%clk 0:03:01.1]}
7. Nc3 {[%clk 0:02:31]} 7... Nxc3 {[%clk 0:02:59]} 8. bxc3 {[%clk 0:02:30.5]}
8... d6 {[%clk 0:02:59.9]} 9. exd6 {[%clk 0:02:30.6]} 9... Bxd6 {[%clk
0:02:59.7]} 10. Bd3 {[%clk 0:02:31.2]} 10... Qa5 {[%clk 0:02:50.3]} 11. Bd2
{[%clk 0:02:30.4]} 11... Qh5 {[%clk 0:02:50.9]} 12. Qa4 {[%clk 0:02:26.6]} 12...
O-O {[%clk 0:02:47.2]} 13. O-O {[%clk 0:02:25.3]} 13... e5 {[%clk 0:02:44.2]}
14. d5 {[%clk 0:02:22.5]} 14... Ne7 {[%clk 0:02:42.2]} 15. h3 {[%clk 0:02:12.3]}
15... Bxh3 {[%clk 0:02:39.3]} 16. gxh3 {[%clk 0:02:11.3]} 16... Qxf3 {[%clk
0:02:38.5]} 17. Qe4 {[%clk 0:02:07.6]} 17... Qxh3 {[%clk 0:02:32.6]} 18. c4
{[%clk 0:02:07.7]} 18... f5 {[%clk 0:02:31]} 19. Qe3 {[%clk 0:02:06.2]} 19...
Qg4+ {[%clk 0:02:25.3]} 20. Kh1 {[%clk 0:02:04.5]} 20... e4 {[%clk 0:02:15.4]}
21. Rg1 {[%clk 0:01:57.8]} 21... Qh5+ {[%clk 0:02:03.7]} 22. Kg2 {[%clk
0:01:56.4]} 22... exd3 {[%clk 0:02:00.8]} 23. Qe6+ {[%clk 0:01:54.6]} 23... Kh8
{[%clk 0:01:55.4]} 24. Qxd6 {[%clk 0:01:50]} 24... Ng6 {[%clk 0:01:51]} 25. Rae1
{[%clk 0:01:46.7]} 25... Qg4+ {[%clk 0:01:48.5]} 26. Kf1 {[%clk 0:01:46.5]}
26... Qh3+ {[%clk 0:01:48.4]} 27. Rg2 {[%clk 0:01:45.7]} 27... Nh4 {[%clk
0:01:44]} 28. Qg3 {[%clk 0:01:44.5]} 28... Qxg2+ {[%clk 0:01:38.5]} 29. Qxg2
{[%clk 0:01:44.3]} 29... Nxg2 {[%clk 0:01:39.4]} 30. Kxg2 {[%clk 0:01:44.1]}
30... Rac8 {[%clk 0:01:37.6]} 31. Bb4 {[%clk 0:01:41.6]} 31... Rfd8 {[%clk
0:01:36.3]} 32. d6 {[%clk 0:01:38.4]} 32... Kg8 {[%clk 0:01:30.2]} 33. c5 {[%clk
0:01:37.4]} 33... b6 {[%clk 0:01:26.5]} 34. cxb6 {[%clk 0:01:31.6]} 34... axb6
{[%clk 0:01:27.4]} 35. Re7 {[%clk 0:01:30.9]} 35... Rc4 {[%clk 0:01:20.2]} 36.
d7 {[%clk 0:01:26.9]} 36... Rg4+ {[%clk 0:01:00.9]} 37. Kf3 {[%clk 0:01:24]}
37... Rxd7 {[%clk 0:00:52.2]} 38. Rxd7 {[%clk 0:01:21.9]} 38... Rxb4 {[%clk
0:00:52.9]} 39. Rxd3 {[%clk 0:01:21.6]} 39... Kf7 {[%clk 0:00:50.8]} 40. Rd7+
{[%clk 0:01:17.9]} 40... Kg6 {[%clk 0:00:50.1]} 41. Rb7 {[%clk 0:01:17.5]} 41...
h5 {[%clk 0:00:47.9]} 42. a4 {[%clk 0:01:13]} 42... Kf6 {[%clk 0:00:42.1]} 43.
Kg2 {[%clk 0:01:09.3]} 43... h4 {[%clk 0:00:39.7]} 44. Kh3 {[%clk 0:01:08.8]}
44... g5 {[%clk 0:00:38.9]} 45. f3 {[%clk 0:01:08.9]} 45... Ke5 {[%clk
0:00:36.8]} 46. Ra7 {[%clk 0:00:56]} 46... Kf4 {[%clk 0:00:35.8]} 47. a5 {[%clk
0:00:56.5]} 47... bxa5 {[%clk 0:00:33.4]} 48. Rxa5 {[%clk 0:00:56.7]} 48... Rb3
{[%clk 0:00:30.1]} 49. Kg2 {[%clk 0:00:49.8]} 49... h3+ {[%clk 0:00:25.8]} 50.
Kxh3 {[%clk 0:00:49.6]} 50... Rxf3+ {[%clk 0:00:25.1]} 51. Kg2 {[%clk
0:00:49.9]} 51... Rg3+ {[%clk 0:00:24.3]} 52. Kf2 {[%clk 0:00:49.5]} 52... Rb3
{[%clk 0:00:20.4]} 53. Ra4+ {[%clk 0:00:47.4]} 53... Ke5 {[%clk 0:00:21.1]} 54.
Ra5+ {[%clk 0:00:47.8]} 54... Kf6 {[%clk 0:00:21.3]} 55. Ra6+ {[%clk 0:00:47.8]}
55... Ke5 {[%clk 0:00:21.4]} 56. Ra5+ {[%clk 0:00:48.1]} 56... Ke4 {[%clk
0:00:21.7]} 57. Ra4+ {[%clk 0:00:48.4]} 57... Kd5 {[%clk 0:00:18.6]} 58. Ra5+
{[%clk 0:00:48.7]} 58... Ke4 {[%clk 0:00:16.6]} 59. Ra4+ {[%clk 0:00:48.6]}
59... Ke5 {[%clk 0:00:16.6]} 60. Ra5+ {[%clk 0:00:48.8]} 1/2-1/2

[Event "Early-Titled-Tuesday-Blitz-May-28-2024"]
[Site "Chess.com"]
[Date "2024.05.28"]
[Round "10"]
[White "MaxLeto"]
[Black "IndianSchoolOfSuffering"]
[Result "0-1"]
[WhiteElo "2390"]
[BlackElo "2532"]
[TimeControl "180+1"]
[EndTime "9:58:19 PDT"]
[Termination "IndianSchoolOfSuffering won on time"]

1. e4 {[%clk 0:02:58.2]} 1... e5 {[%clk 0:02:59.1]} 2. Nf3 {[%clk 0:02:58.6]}
2... Nc6 {[%clk 0:02:58.5]} 3. Bb5 {[%clk 0:02:59]} 3... a6 {[%clk 0:02:57.8]}
4. Ba4 {[%clk 0:02:58.7]} 4... Nf6 {[%clk 0:02:56.9]} 5. O-O {[%clk 0:02:59]}
5... Be7 {[%clk 0:02:56.6]} 6. Re1 {[%clk 0:02:59.4]} 6... b5 {[%clk 0:02:56]}
7. Bb3 {[%clk 0:02:59.4]} 7... O-O {[%clk 0:02:56.4]} 8. d3 {[%clk 0:02:54.8]}
8... Bb7 {[%clk 0:02:54.6]} 9. a3 {[%clk 0:02:53.5]} 9... d6 {[%clk 0:02:51.4]}
10. Nc3 {[%clk 0:02:52.7]} 10... Na5 {[%clk 0:02:49.2]} 11. Ba2 {[%clk
0:02:52.2]} 11... c5 {[%clk 0:02:49.1]} 12. Bg5 {[%clk 0:02:51.9]} 12... Nc6
{[%clk 0:02:47.1]} 13. Nd2 {[%clk 0:02:30]} 13... h6 {[%clk 0:02:44.4]} 14. Bxf6
{[%clk 0:02:26.8]} 14... Bxf6 {[%clk 0:02:43.8]} 15. Nf1 {[%clk 0:02:25.5]}
15... Nd4 {[%clk 0:02:42.7]} 16. Ne3 {[%clk 0:02:24.2]} 16... g6 {[%clk
0:02:40]} 17. Bd5 {[%clk 0:02:23.6]} 17... Ra7 {[%clk 0:02:34.7]} 18. Bxb7
{[%clk 0:02:22.7]} 18... Rxb7 {[%clk 0:02:34.9]} 19. Ncd5 {[%clk 0:02:23.6]}
19... Bg7 {[%clk 0:02:34.1]} 20. c3 {[%clk 0:02:24.5]} 20... Ne6 {[%clk
0:02:33.6]} 21. Qg4 {[%clk 0:02:02]} 21... Kh7 {[%clk 0:02:12.5]} 22. b4 {[%clk
0:01:31.7]} 22... Rb8 {[%clk 0:01:59.7]} 23. a4 {[%clk 0:01:25.1]} 23... h5
{[%clk 0:01:49.2]} 24. Qh3 {[%clk 0:01:12.4]} 24... Ra8 {[%clk 0:01:23.5]} 25.
Ra2 {[%clk 0:00:52]} 25... a5 {[%clk 0:01:17.7]} 26. axb5 {[%clk 0:00:22.8]}
26... axb4 {[%clk 0:01:17.4]} 27. Rxa8 {[%clk 0:00:21.2]} 27... Qxa8 {[%clk
0:01:17.4]} 28. cxb4 {[%clk 0:00:17.9]} 28... cxb4 {[%clk 0:01:17.4]} 29. Nc4
{[%clk 0:00:16.1]} 29... b3 {[%clk 0:01:06.7]} 30. Qe3 {[%clk 0:00:13.3]} 30...
Nd4 {[%clk 0:01:05.2]} 31. Rb1 {[%clk 0:00:09.6]} 31... Qa2 {[%clk 0:01:01.8]}
32. Qe1 {[%clk 0:00:02.5]} 32... Nxb5 {[%clk 0:00:56.6]} 33. Ra1 {[%clk
0:00:01.7]} 33... Qc2 {[%clk 0:00:55.5]} 34. Nb4 {[%clk 0:00:01.4]} 34... Nd4
{[%clk 0:00:37.3]} 35. h3 {[%clk 0:00:01]} 35... Qe2 {[%clk 0:00:33.2]} 36. Qxe2
{[%clk 0:00:01]} 36... Nxe2+ {[%clk 0:00:33.3]} 37. Kf1 {[%clk 0:00:01.9]} 37...
Nd4 {[%clk 0:00:33.5]} 38. Nd5 {[%clk 0:00:02.4]} 38... Rb8 {[%clk 0:00:30.9]}
39. Rb1 {[%clk 0:00:03]} 39... f5 {[%clk 0:00:27.4]} 40. f3 {[%clk 0:00:03.3]}
40... Bh6 {[%clk 0:00:26.6]} 41. Ke1 {[%clk 0:00:03.5]} 41... Nc2+ {[%clk
0:00:24.3]} 42. Ke2 {[%clk 0:00:03.5]} 42... Bg5 {[%clk 0:00:22.2]} 43. Na5
{[%clk 0:00:02.4]} 43... b2 {[%clk 0:00:21.2]} 44. Nc4 {[%clk 0:00:02.2]} 44...
Bc1 {[%clk 0:00:20.6]} 45. Nc3 {[%clk 0:00:00.2]} 45... Na3 {[%clk 0:00:19.9]}
0-1

[Event "Early-Titled-Tuesday-Blitz-May-28-2024"]
[Site "Chess.com"]
[Date "2024.05.28"]
[Round "10"]
[White "ckgchess"]
[Black "GoltsevDmitry2000"]
[Result "0-1"]
[WhiteElo "2877"]
[BlackElo "2765"]
[TimeControl "180+1"]
[EndTime "9:58:20 PDT"]
[Termination "GoltsevDmitry2000 won by resignation"]

1. e4 {[%clk 0:02:56.6]} 1... e6 {[%clk 0:03:00.1]} 2. d4 {[%clk 0:02:57.1]}
2... d5 {[%clk 0:03:00.9]} 3. Nc3 {[%clk 0:02:58]} 3... c5 {[%clk 0:03:00.8]} 4.
exd5 {[%clk 0:02:57]} 4... exd5 {[%clk 0:03:01.7]} 5. dxc5 {[%clk 0:02:57.3]}
5... Nf6 {[%clk 0:03:01.3]} 6. Be3 {[%clk 0:02:57.4]} 6... Nc6 {[%clk
0:03:01.8]} 7. Bb5 {[%clk 0:02:56.1]} 7... Be7 {[%clk 0:03:01.3]} 8. Nge2 {[%clk
0:02:49.6]} 8... O-O {[%clk 0:02:57.6]} 9. O-O {[%clk 0:02:48]} 9... a6 {[%clk
0:02:54.4]} 10. Bxc6 {[%clk 0:02:47.6]} 10... bxc6 {[%clk 0:02:55.3]} 11. h3
{[%clk 0:02:40.5]} 11... Bd7 {[%clk 0:02:49.4]} 12. b4 {[%clk 0:02:40.5]} 12...
Qc8 {[%clk 0:02:43.4]} 13. Nd4 {[%clk 0:02:31.1]} 13... a5 {[%clk 0:02:36.1]}
14. a3 {[%clk 0:01:54.2]} 14... axb4 {[%clk 0:02:35.5]} 15. axb4 {[%clk
0:01:55.1]} 15... Rxa1 {[%clk 0:02:35.7]} 16. Qxa1 {[%clk 0:01:56]} 16... Bxh3
{[%clk 0:02:36.1]} 17. f3 {[%clk 0:01:47.6]} 17... Bd7 {[%clk 0:02:23.9]} 18.
Re1 {[%clk 0:01:45.6]} 18... Nh5 {[%clk 0:02:17]} 19. Nce2 {[%clk 0:01:35.6]}
19... Re8 {[%clk 0:01:58.6]} 20. Qc3 {[%clk 0:01:21.5]} 20... Bh4 {[%clk
0:01:44.7]} 21. Bf2 {[%clk 0:01:21.6]} 21... Bxf2+ {[%clk 0:01:25.9]} 22. Kxf2
{[%clk 0:01:22.5]} 22... Qd8 {[%clk 0:01:26.3]} 23. Rh1 {[%clk 0:01:22.3]} 23...
Qg5 {[%clk 0:01:25.9]} 24. Qd3 {[%clk 0:01:08.6]} 24... g6 {[%clk 0:00:48]} 25.
g3 {[%clk 0:00:59.5]} 25... Ng7 {[%clk 0:00:33.5]} 26. Nf4 {[%clk 0:00:52]}
26... Bf5 {[%clk 0:00:23.7]} 27. Qd2 {[%clk 0:00:48.6]} 27... Nh5 {[%clk
0:00:23.2]} 28. Nxf5 {[%clk 0:00:36.5]} 28... Qxf5 {[%clk 0:00:15.2]} 29. Nxh5
{[%clk 0:00:36.9]} 29... gxh5 {[%clk 0:00:16.1]} 30. Rh4 {[%clk 0:00:30.2]}
30... Qe5 {[%clk 0:00:13.9]} 31. c3 {[%clk 0:00:28]} 31... Qf5 {[%clk
0:00:13.2]} 32. Rh1 {[%clk 0:00:20.3]} 32... Re6 {[%clk 0:00:13.4]} 33. Re1
{[%clk 0:00:15]} 33... Kg7 {[%clk 0:00:12.1]} 34. Qd4+ {[%clk 0:00:11.3]} 34...
Kg6 {[%clk 0:00:11.1]} 35. Re2 {[%clk 0:00:09.2]} 35... Qh3 {[%clk 0:00:09.6]}
36. Rxe6+ {[%clk 0:00:08.4]} 36... fxe6 {[%clk 0:00:10.4]} 37. Qe5 {[%clk
0:00:08.2]} 37... Qh2+ {[%clk 0:00:09.5]} 38. Ke3 {[%clk 0:00:08.2]} 38... Qg1+
{[%clk 0:00:09.9]} 39. Kd3 {[%clk 0:00:04.4]} 39... Qd1+ {[%clk 0:00:09.1]} 40.
Ke3 {[%clk 0:00:02.9]} 40... Qe1+ {[%clk 0:00:09.4]} 41. Kf4 {[%clk 0:00:02.1]}
41... Qd2+ {[%clk 0:00:08.5]} 42. Qe3 {[%clk 0:00:03]} 42... e5+ {[%clk
0:00:06.4]} 0-1

[Event "Early-Titled-Tuesday-Blitz-May-28-2024"]
[Site "Chess.com"]
[Date "2024.05.28"]
[Round "10"]
[White "crazy_but_lazy"]
[Black "Chessmissile07"]
[Result "1-0"]
[WhiteElo "2687"]
[BlackElo "2817"]
[TimeControl "180+1"]
[EndTime "9:58:23 PDT"]
[Termination "crazy_but_lazy won by checkmate"]

1. d4 {[%clk 0:03:00.9]} 1... a6 {[%clk 0:03:00.9]} 2. e4 {[%clk 0:03:00.3]}
2... d5 {[%clk 0:02:58.4]} 3. exd5 {[%clk 0:02:54.7]} 3... Qxd5 {[%clk
0:02:59.3]} 4. c4 {[%clk 0:02:53.2]} 4... Qd8 {[%clk 0:02:58]} 5. Nc3 {[%clk
0:02:52.7]} 5... Nf6 {[%clk 0:02:58.1]} 6. h3 {[%clk 0:02:51.8]} 6... Bf5 {[%clk
0:02:51.3]} 7. Be3 {[%clk 0:02:39.7]} 7... e6 {[%clk 0:02:51.4]} 8. g4 {[%clk
0:02:38.1]} 8... Bg6 {[%clk 0:02:50.5]} 9. Bg2 {[%clk 0:02:38.6]} 9... c6 {[%clk
0:02:50.3]} 10. Nge2 {[%clk 0:02:36.1]} 10... Nbd7 {[%clk 0:02:49.4]} 11. Ng3
{[%clk 0:02:18.9]} 11... Bd6 {[%clk 0:02:49.5]} 12. Nge4 {[%clk 0:02:13.8]}
12... Nxe4 {[%clk 0:02:49.1]} 13. Nxe4 {[%clk 0:02:14.4]} 13... Bb4+ {[%clk
0:02:43.3]} 14. Nc3 {[%clk 0:02:10.6]} 14... h5 {[%clk 0:02:34.7]} 15. Qb3
{[%clk 0:01:58]} 15... Qa5 {[%clk 0:02:33.9]} 16. O-O-O {[%clk 0:01:49]} 16...
Bxc3 {[%clk 0:02:01.1]} 17. bxc3 {[%clk 0:01:42.1]} 17... O-O {[%clk 0:01:51.9]}
18. f4 {[%clk 0:01:17]} 18... Nf6 {[%clk 0:01:45.8]} 19. Kb2 {[%clk 0:00:53.9]}
19... b5 {[%clk 0:01:39.2]} 20. c5 {[%clk 0:00:50.4]} 20... Qc7 {[%clk
0:01:22.2]} 21. Rdf1 {[%clk 0:00:24.8]} 21... Bd3 {[%clk 0:01:13.5]} 22. Rf2
{[%clk 0:00:15.9]} 22... a5 {[%clk 0:00:59.3]} 23. Qd1 {[%clk 0:00:13.4]} 23...
Be4 {[%clk 0:00:56.6]} 24. g5 {[%clk 0:00:11.6]} 24... Nd5 {[%clk 0:00:56.6]}
25. Bxe4 {[%clk 0:00:11.2]} 25... Nxe3 {[%clk 0:00:56.8]} 26. Qxh5 {[%clk
0:00:11.1]} 26... g6 {[%clk 0:00:54.4]} 27. Qf3 {[%clk 0:00:11.5]} 27... Nc4+
{[%clk 0:00:50.6]} 28. Ka1 {[%clk 0:00:12.1]} 28... b4 {[%clk 0:00:23.3]} 29. h4
{[%clk 0:00:12.6]} 29... Rfb8 {[%clk 0:00:13]} 30. h5 {[%clk 0:00:12.7]} 30...
b3 {[%clk 0:00:13.4]} 31. axb3 {[%clk 0:00:07.6]} 31... Rxb3 {[%clk 0:00:12.9]}
32. hxg6 {[%clk 0:00:07.6]} 32... Ra3+ {[%clk 0:00:11.2]} 33. Ra2 {[%clk
0:00:07.4]} 33... Rxa2+ {[%clk 0:00:09.4]} 34. Kxa2 {[%clk 0:00:08.3]} 34...
fxg6 {[%clk 0:00:07.2]} 35. Qh3 {[%clk 0:00:07.1]} 35... Qg7 {[%clk 0:00:03.4]}
36. Qxe6+ {[%clk 0:00:06.5]} 36... Kf8 {[%clk 0:00:04.1]} 37. Rh6 {[%clk
0:00:06]} 37... Re8 {[%clk 0:00:05]} 38. Qxc6 {[%clk 0:00:05.1]} 38... Nd2
{[%clk 0:00:04.6]} 39. Bd5 {[%clk 0:00:05.1]} 39... Re2 {[%clk 0:00:02.7]} 40.
Rxg6 {[%clk 0:00:04.8]} 40... Ne4+ {[%clk 0:00:02.7]} 41. Ka3 {[%clk 0:00:04.6]}
41... Qe7 {[%clk 0:00:01.6]} 42. Rg8# {[%clk 0:00:04.3]} 1-0